Workbook

Sheet HeroPowerConfig
A1: ID | B1: heroLevel | C1: isMaxLv | D1: HP | E1: ATK | F1: DEF | G1: expCost | H1: zihunCost | I1: pingFen
A2: int | B2: int | C2: int | D2: long | E2: long | F2: long | G2: long | H2: long | I2: int
A4: 表ID | B4: 英雄等级 | C4: 满级标志 0：没满级 1：满级 | D4: 生命值 | E4: 攻击力 | F4: 防御力 | G4: 经验消耗 | H4: 神秘能量消耗 | I4: 评分
A5: 1 | B5: 1 | C5: 0 | D5: 500 | E5: 50 | F5: 20 | G5: 10 | H5: 0 | I5: =(D5+E5+F5)*1.5 -> 855
A6: 2 | B6: 2 | C6: 0 | D6: 600 | E6: 60 | F6: 22 | G6: 10 | H6: 0 | I6: =(D6+E6+F6)*1.5 -> 1023
A7: 3 | B7: 3 | C7: 0 | D7: 700 | E7: 70 | F7: 24 | G7: 20 | H7: 0 | I7: 1191
A8: 4 | B8: 4 | C8: 0 | D8: 800 | E8: 80 | F8: 26 | G8: 20 | H8: 0 | I8: 1359
A9: 5 | B9: 5 | C9: 0 | D9: 900 | E9: 90 | F9: 28 | G9: 30 | H9: 0 | I9: 1527
A10: 6 | B10: 6 | C10: 0 | D10: 1000 | E10: 100 | F10: 30 | G10: 40 | H10: 0 | I10: 1695
A11: 7 | B11: 7 | C11: 0 | D11: 1100 | E11: 110 | F11: 32 | G11: 40 | H11: 0 | I11: 1863
A12: 8 | B12: 8 | C12: 0 | D12: 1200 | E12: 120 | F12: 34 | G12: 50 | H12: 0 | I12: 2031
A13: 9 | B13: 9 | C13: 0 | D13: 1300 | E13: 130 | F13: 36 | G13: 50 | H13: 0 | I13: 2199
A14: 10 | B14: 10 | C14: 0 | D14: 1400 | E14: 140 | F14: 38 | G14: 60 | H14: 0 | I14: 2367
A15: 11 | B15: 11 | C15: 0 | D15: 1500 | E15: 150 | F15: 40 | G15: 130 | H15: 0 | I15: 2535
A16: 12 | B16: 12 | C16: 0 | D16: 1600 | E16: 160 | F16: 42 | G16: 150 | H16: 0 | I16: 2703
A17: 13 | B17: 13 | C17: 0 | D17: 1700 | E17: 170 | F17: 44 | G17: 180 | H17: 0 | I17: 2871
A18: 14 | B18: 14 | C18: 0 | D18: 1800 | E18: 180 | F18: 46 | G18: 200 | H18: 0 | I18: 3039
A19: 15 | B19: 15 | C19: 0 | D19: 1900 | E19: 190 | F19: 48 | G19: 230 | H19: 0 | I19: 3207
A20: 16 | B20: 16 | C20: 0 | D20: 2000 | E20: 200 | F20: 50 | G20: 250 | H20: 0 | I20: 3375
A21: 17 | B21: 17 | C21: 0 | D21: 2100 | E21: 210 | F21: 52 | G21: 280 | H21: 0 | I21: 3543
A22: 18 | B22: 18 | C22: 0 | D22: 2200 | E22: 220 | F22: 54 | G22: 310 | H22: 0 | I22: 3711
A23: 19 | B23: 19 | C23: 0 | D23: 2300 | E23: 230 | F23: 56 | G23: 340 | H23: 0 | I23: 3879
A24: 20 | B24: 20 | C24: 0 | D24: 2400 | E24: 240 | F24: 58 | G24: 370 | H24: 0 | I24: 4047
A25: 21 | B25: 21 | C25: 0 | D25: 2500 | E25: 250 | F25: 60 | G25: 390 | H25: 0 | I25: 4215
A26: 22 | B26: 22 | C26: 0 | D26: 2600 | E26: 260 | F26: 62 | G26: 430 | H26: 0 | I26: 4383
A27: 23 | B27: 23 | C27: 0 | D27: 2700 | E27: 270 | F27: 64 | G27: 450 | H27: 0 | I27: 4551
A28: 24 | B28: 24 | C28: 0 | D28: 2800 | E28: 280 | F28: 66 | G28: 490 | H28: 0 | I28: 4719
A29: 25 | B29: 25 | C29: 0 | D29: 2900 | E29: 290 | F29: 68 | G29: 530 | H29: 0 | I29: 4887
A30: 26 | B30: 26 | C30: 0 | D30: 3000 | E30: 300 | F30: 70 | G30: 550 | H30: 0 | I30: 5055
A31: 27 | B31: 27 | C31: 0 | D31: 3100 | E31: 310 | F31: 72 | G31: 590 | H31: 0 | I31: 5223
A32: 28 | B32: 28 | C32: 0 | D32: 3200 | E32: 320 | F32: 74 | G32: 620 | H32: 0 | I32: 5391
A33: 29 | B33: 29 | C33: 0 | D33: 3300 | E33: 330 | F33: 76 | G33: 650 | H33: 0 | I33: 5559
A34: 30 | B34: 30 | C34: 0 | D34: 3400 | E34: 340 | F34: 78 | G34: 690 | H34: 0 | I34: 5727
A35: 31 | B35: 31 | C35: 0 | D35: 3500 | E35: 350 | F35: 80 | G35: 730 | H35: 0 | I35: 5895
A36: 32 | B36: 32 | C36: 0 | D36: 3600 | E36: 360 | F36: 82 | G36: 770 | H36: 0 | I36: 6063
A37: 33 | B37: 33 | C37: 0 | D37: 3700 | E37: 370 | F37: 84 | G37: 810 | H37: 0 | I37: 6231
A38: 34 | B38: 34 | C38: 0 | D38: 3800 | E38: 380 | F38: 86 | G38: 840 | H38: 0 | I38: 6399
A39: 35 | B39: 35 | C39: 0 | D39: 3900 | E39: 390 | F39: 88 | G39: 880 | H39: 0 | I39: 6567
A40: 36 | B40: 36 | C40: 0 | D40: 4000 | E40: 400 | F40: 90 | G40: 930 | H40: 0 | I40: 6735
A41: 37 | B41: 37 | C41: 0 | D41: 4100 | E41: 410 | F41: 92 | G41: 970 | H41: 0 | I41: 6903
A42: 38 | B42: 38 | C42: 0 | D42: 4200 | E42: 420 | F42: 94 | G42: 1010 | H42: 0 | I42: 7071
A43: 39 | B43: 39 | C43: 0 | D43: 4300 | E43: 430 | F43: 96 | G43: 1050 | H43: 0 | I43: 7239
A44: 40 | B44: 40 | C44: 0 | D44: 4400 | E44: 440 | F44: 98 | G44: 1190 | H44: 0 | I44: 7407
A45: 41 | B45: 41 | C45: 0 | D45: 4500 | E45: 450 | F45: 100 | G45: 1970 | H45: 0 | I45: 7575
A46: 42 | B46: 42 | C46: 0 | D46: 4600 | E46: 460 | F46: 102 | G46: 1990 | H46: 0 | I46: 7743
A47: 43 | B47: 43 | C47: 0 | D47: 4700 | E47: 470 | F47: 104 | G47: 2030 | H47: 0 | I47: 7911
A48: 44 | B48: 44 | C48: 0 | D48: 4800 | E48: 480 | F48: 106 | G48: 2080 | H48: 0 | I48: 8079
A49: 45 | B49: 45 | C49: 0 | D49: 4900 | E49: 490 | F49: 108 | G49: 2100 | H49: 0 | I49: 8247
A50: 46 | B50: 46 | C50: 0 | D50: 5000 | E50: 500 | F50: 110 | G50: 2140 | H50: 0 | I50: 8415
A51: 47 | B51: 47 | C51: 0 | D51: 5100 | E51: 510 | F51: 112 | G51: 2180 | H51: 0 | I51: 8583
A52: 48 | B52: 48 | C52: 0 | D52: 5200 | E52: 520 | F52: 114 | G52: 2220 | H52: 0 | I52: 8751
A53: 49 | B53: 49 | C53: 0 | D53: 5300 | E53: 530 | F53: 116 | G53: 2260 | H53: 0 | I53: 8919
A54: 50 | B54: 50 | C54: 0 | D54: 5400 | E54: 540 | F54: 118 | G54: 2350 | H54: 0 | I54: 9087
A55: 51 | B55: 51 | C55: 0 | D55: 5500 | E55: 550 | F55: 120 | G55: 2500 | H55: 0 | I55: 9255
A56: 52 | B56: 52 | C56: 0 | D56: 5600 | E56: 560 | F56: 122 | G56: 2540 | H56: 0 | I56: 9423
A57: 53 | B57: 53 | C57: 0 | D57: 5700 | E57: 570 | F57: 124 | G57: 2600 | H57: 0 | I57: 9591
A58: 54 | B58: 54 | C58: 0 | D58: 5800 | E58: 580 | F58: 126 | G58: 2620 | H58: 0 | I58: 9759
A59: 55 | B59: 55 | C59: 0 | D59: 5900 | E59: 590 | F59: 128 | G59: 2660 | H59: 0 | I59: 9927
A60: 56 | B60: 56 | C60: 0 | D60: 6000 | E60: 600 | F60: 130 | G60: 2720 | H60: 0 | I60: 10095
A61: 57 | B61: 57 | C61: 0 | D61: 6100 | E61: 610 | F61: 132 | G61: 2770 | H61: 0 | I61: 10263
A62: 58 | B62: 58 | C62: 0 | D62: 6200 | E62: 620 | F62: 134 | G62: 2790 | H62: 0 | I62: 10431
A63: 59 | B63: 59 | C63: 0 | D63: 6300 | E63: 630 | F63: 136 | G63: 2840 | H63: 0 | I63: 10599
A64: 60 | B64: 60 | C64: 0 | D64: 6400 | E64: 640 | F64: 138 | G64: 3000 | H64: 0 | I64: 10767
A65: 61 | B65: 61 | C65: 0 | D65: 6500 | E65: 650 | F65: 140 | G65: 3300 | H65: 0 | I65: 10935
A66: 62 | B66: 62 | C66: 0 | D66: 6600 | E66: 660 | F66: 142 | G66: 3300 | H66: 0 | I66: 11103
A67: 63 | B67: 63 | C67: 0 | D67: 6700 | E67: 670 | F67: 144 | G67: 3300 | H67: 0 | I67: 11271
A68: 64 | B68: 64 | C68: 0 | D68: 6800 | E68: 680 | F68: 146 | G68: 3300 | H68: 0 | I68: 11439
A69: 65 | B69: 65 | C69: 0 | D69: 6900 | E69: 690 | F69: 148 | G69: 3300 | H69: 0 | I69: 11607
A70: 66 | B70: 66 | C70: 0 | D70: 7000 | E70: 700 | F70: 150 | G70: 3300 | H70: 0 | I70: =(D70+E70+F70)*1.5 -> 11775
A71: 67 | B71: 67 | C71: 0 | D71: 7100 | E71: 710 | F71: 152 | G71: 3500 | H71: 0 | I71: 11943
A72: 68 | B72: 68 | C72: 0 | D72: 7200 | E72: 720 | F72: 154 | G72: 3700 | H72: 0 | I72: 12111
A73: 69 | B73: 69 | C73: 0 | D73: 7300 | E73: 730 | F73: 156 | G73: 3900 | H73: 0 | I73: 12279
A74: 70 | B74: 70 | C74: 0 | D74: 7400 | E74: 740 | F74: 158 | G74: 3900 | H74: 0 | I74: 12447
A75: 71 | B75: 71 | C75: 0 | D75: 7500 | E75: 750 | F75: 160 | G75: 3900 | H75: 0 | I75: 12615
A76: 72 | B76: 72 | C76: 0 | D76: 7600 | E76: 760 | F76: 162 | G76: 4000 | H76: 0 | I76: 12783
A77: 73 | B77: 73 | C77: 0 | D77: 7700 | E77: 770 | F77: 164 | G77: 4200 | H77: 0 | I77: 12951
A78: 74 | B78: 74 | C78: 0 | D78: 7800 | E78: 780 | F78: 166 | G78: 4200 | H78: 0 | I78: 13119
A79: 75 | B79: 75 | C79: 0 | D79: 7900 | E79: 790 | F79: 168 | G79: 4200 | H79: 0 | I79: 13287
A80: 76 | B80: 76 | C80: 0 | D80: 8000 | E80: 800 | F80: 170 | G80: 4300 | H80: 0 | I80: 13455
A81: 77 | B81: 77 | C81: 0 | D81: 8100 | E81: 810 | F81: 172 | G81: 4800 | H81: 0 | I81: 13623
A82: 78 | B82: 78 | C82: 0 | D82: 8200 | E82: 820 | F82: 174 | G82: 4800 | H82: 0 | I82: 13791
A83: 79 | B83: 79 | C83: 0 | D83: 8300 | E83: 830 | F83: 176 | G83: 4800 | H83: 0 | I83: 13959
A84: 80 | B84: 80 | C84: 0 | D84: 8400 | E84: 840 | F84: 178 | G84: 4800 | H84: 0 | I84: 14127
A85: 81 | B85: 81 | C85: 0 | D85: 8500 | E85: 850 | F85: 180 | G85: 5000 | H85: 0 | I85: 14295
A86: 82 | B86: 82 | C86: 0 | D86: 8600 | E86: 860 | F86: 182 | G86: 5100 | H86: 0 | I86: 14463
A87: 83 | B87: 83 | C87: 0 | D87: 8700 | E87: 870 | F87: 184 | G87: 5100 | H87: 0 | I87: 14631
A88: 84 | B88: 84 | C88: 0 | D88: 8800 | E88: 880 | F88: 186 | G88: 5700 | H88: 0 | I88: 14799
A89: 85 | B89: 85 | C89: 0 | D89: 8900 | E89: 890 | F89: 188 | G89: 5700 | H89: 0 | I89: 14967
A90: 86 | B90: 86 | C90: 0 | D90: 9000 | E90: 900 | F90: 190 | G90: 5800 | H90: 0 | I90: 15135
A91: 87 | B91: 87 | C91: 0 | D91: 9100 | E91: 910 | F91: 192 | G91: 6000 | H91: 0 | I91: 15303
A92: 88 | B92: 88 | C92: 0 | D92: 9200 | E92: 920 | F92: 194 | G92: 6000 | H92: 0 | I92: 15471
A93: 89 | B93: 89 | C93: 0 | D93: 9300 | E93: 930 | F93: 196 | G93: 6000 | H93: 0 | I93: 15639
A94: 90 | B94: 90 | C94: 0 | D94: 9400 | E94: 940 | F94: 198 | G94: 6200 | H94: 0 | I94: 15807
A95: 91 | B95: 91 | C95: 0 | D95: 9500 | E95: 950 | F95: 200 | G95: 6600 | H95: 0 | I95: 15975
A96: 92 | B96: 92 | C96: 0 | D96: 9600 | E96: 960 | F96: 202 | G96: 6600 | H96: 0 | I96: 16143
A97: 93 | B97: 93 | C97: 0 | D97: 9700 | E97: 970 | F97: 204 | G97: 6600 | H97: 0 | I97: 16311
A98: 94 | B98: 94 | C98: 0 | D98: 9800 | E98: 980 | F98: 206 | G98: 6800 | H98: 0 | I98: 16479
A99: 95 | B99: 95 | C99: 0 | D99: 9900 | E99: 990 | F99: 208 | G99: 6900 | H99: 0 | I99: 16647
A100: 96 | B100: 96 | C100: 0 | D100: 10000 | E100: 1000 | F100: 210 | G100: 6900 | H100: 0 | I100: 16815
A101: 97 | B101: 97 | C101: 0 | D101: 10100 | E101: 1010 | F101: 212 | G101: 7500 | H101: 0 | I101: 16983
A102: 98 | B102: 98 | C102: 0 | D102: 10200 | E102: 1020 | F102: 214 | G102: 7500 | H102: 0 | I102: 17151
A103: 99 | B103: 99 | C103: 0 | D103: 10300 | E103: 1030 | F103: 216 | G103: 7500 | H103: 0 | I103: 17319
A104: 100 | B104: 100 | C104: 0 | D104: 10400 | E104: 1040 | F104: 218 | G104: 7700 | H104: 0 | I104: 17487
A105: 101 | B105: 101 | C105: 0 | D105: 10500 | E105: 1050 | F105: 220 | G105: 7800 | H105: 0 | I105: 17655
A106: 102 | B106: 102 | C106: 0 | D106: 10600 | E106: 1060 | F106: 222 | G106: 7800 | H106: 0 | I106: 17823
A107: 103 | B107: 103 | C107: 0 | D107: 10700 | E107: 1070 | F107: 224 | G107: 8400 | H107: 0 | I107: 17991
A108: 104 | B108: 104 | C108: 0 | D108: 10800 | E108: 1080 | F108: 226 | G108: 8500 | H108: 0 | I108: 18159
A109: 105 | B109: 105 | C109: 0 | D109: 10900 | E109: 1090 | F109: 228 | G109: 8700 | H109: 0 | I109: 18327
A110: 106 | B110: 106 | C110: 0 | D110: 11000 | E110: 1100 | F110: 230 | G110: 8700 | H110: 0 | I110: 18495
A111: 107 | B111: 107 | C111: 0 | D111: 11100 | E111: 1110 | F111: 232 | G111: 8800 | H111: 0 | I111: 18663
A112: 108 | B112: 108 | C112: 0 | D112: 11200 | E112: 1120 | F112: 234 | G112: 9200 | H112: 0 | I112: 18831
A113: 109 | B113: 109 | C113: 0 | D113: 11300 | E113: 1130 | F113: 236 | G113: 9600 | H113: 0 | I113: 18999
A114: 110 | B114: 110 | C114: 0 | D114: 11400 | E114: 1140 | F114: 238 | G114: 9600 | H114: 0 | I114: 19167
A115: 111 | B115: 111 | C115: 0 | D115: 11500 | E115: 1150 | F115: 240 | G115: 9900 | H115: 0 | I115: 19335
A116: 112 | B116: 112 | C116: 0 | D116: 11600 | E116: 1160 | F116: 242 | G116: 9900 | H116: 0 | I116: 19503
A117: 113 | B117: 113 | C117: 0 | D117: 11700 | E117: 1170 | F117: 244 | G117: 9900 | H117: 0 | I117: 19671
A118: 114 | B118: 114 | C118: 0 | D118: 11800 | E118: 1180 | F118: 246 | G118: 10800 | H118: 0 | I118: 19839
A119: 115 | B119: 115 | C119: 0 | D119: 11900 | E119: 1190 | F119: 248 | G119: 10800 | H119: 0 | I119: 20007
A120: 116 | B120: 116 | C120: 0 | D120: 12000 | E120: 1200 | F120: 250 | G120: 11100 | H120: 0 | I120: 20175
A121: 117 | B121: 117 | C121: 0 | D121: 12100 | E121: 1210 | F121: 252 | G121: 11100 | H121: 0 | I121: 20343
A122: 118 | B122: 118 | C122: 0 | D122: 12200 | E122: 1220 | F122: 254 | G122: 11300 | H122: 0 | I122: 20511
A123: 119 | B123: 119 | C123: 0 | D123: 12300 | E123: 1230 | F123: 256 | G123: 12200 | H123: 0 | I123: 20679
A124: 120 | B124: 120 | C124: 0 | D124: 12400 | E124: 1240 | F124: 258 | G124: 12300 | H124: 0 | I124: 20847
A125: 121 | B125: 121 | C125: 0 | D125: 12500 | E125: 1250 | F125: 260 | G125: 12400 | H125: 0 | I125: 21015
A126: 122 | B126: 122 | C126: 0 | D126: 12600 | E126: 1260 | F126: 262 | G126: 12600 | H126: 0 | I126: 21183
A127: 123 | B127: 123 | C127: 0 | D127: 12700 | E127: 1270 | F127: 264 | G127: 13000 | H127: 0 | I127: 21351
A128: 124 | B128: 124 | C128: 0 | D128: 12800 | E128: 1280 | F128: 266 | G128: 13800 | H128: 0 | I128: 21519
A129: 125 | B129: 125 | C129: 0 | D129: 12900 | E129: 1290 | F129: 268 | G129: 14100 | H129: 0 | I129: 21687
A130: 126 | B130: 126 | C130: 0 | D130: 13000 | E130: 1300 | F130: 270 | G130: 14100 | H130: 0 | I130: 21855
A131: 127 | B131: 127 | C131: 0 | D131: 13100 | E131: 1310 | F131: 272 | G131: 14300 | H131: 0 | I131: 22023
A132: 128 | B132: 128 | C132: 0 | D132: 13200 | E132: 1320 | F132: 274 | G132: 15600 | H132: 0 | I132: 22191
A133: 129 | B133: 129 | C133: 0 | D133: 13300 | E133: 1330 | F133: 276 | G133: 15800 | H133: 0 | I133: 22359
A134: 130 | B134: 130 | C134: 0 | D134: 13400 | E134: 1340 | F134: 278 | G134: 15900 | H134: 0 | I134: =(D134+E134+F134)*1.5 -> 22527
A135: 131 | B135: 131 | C135: 0 | D135: 13500 | E135: 1350 | F135: 280 | G135: 16100 | H135: 0 | I135: 22695
A136: 132 | B136: 132 | C136: 0 | D136: 13600 | E136: 1360 | F136: 282 | G136: 17700 | H136: 0 | I136: 22863
A137: 133 | B137: 133 | C137: 0 | D137: 13700 | E137: 1370 | F137: 284 | G137: 17900 | H137: 0 | I137: 23031
A138: 134 | B138: 134 | C138: 0 | D138: 13800 | E138: 1380 | F138: 286 | G138: 18000 | H138: 0 | I138: 23199
A139: 135 | B139: 135 | C139: 0 | D139: 13900 | E139: 1390 | F139: 288 | G139: 18900 | H139: 0 | I139: 23367
A140: 136 | B140: 136 | C140: 0 | D140: 14000 | E140: 1400 | F140: 290 | G140: 20200 | H140: 0 | I140: 23535
A141: 137 | B141: 137 | C141: 0 | D141: 14100 | E141: 1410 | F141: 292 | G141: 20400 | H141: 0 | I141: 23703
A142: 138 | B142: 138 | C142: 0 | D142: 14200 | E142: 1420 | F142: 294 | G142: 20700 | H142: 0 | I142: 23871
A143: 139 | B143: 139 | C143: 0 | D143: 14300 | E143: 1430 | F143: 296 | G143: 20900 | H143: 0 | I143: 24039
A144: 140 | B144: 140 | C144: 0 | D144: 14400 | E144: 1440 | F144: 298 | G144: 21000 | H144: 0 | I144: 24207
A145: 141 | B145: 141 | C145: 0 | D145: 14500 | E145: 1450 | F145: 300 | G145: 21300 | H145: 0 | I145: 24375
A146: 142 | B146: 142 | C146: 0 | D146: 14600 | E146: 1460 | F146: 302 | G146: 21500 | H146: 0 | I146: 24543
A147: 143 | B147: 143 | C147: 0 | D147: 14700 | E147: 1470 | F147: 304 | G147: 21600 | H147: 0 | I147: 24711
A148: 144 | B148: 144 | C148: 0 | D148: 14800 | E148: 1480 | F148: 306 | G148: 21900 | H148: 0 | I148: 24879
A149: 145 | B149: 145 | C149: 0 | D149: 14900 | E149: 1490 | F149: 308 | G149: 22000 | H149: 0 | I149: 25047
A150: 146 | B150: 146 | C150: 0 | D150: 15000 | E150: 1500 | F150: 310 | G150: 22200 | H150: 0 | I150: 25215
A151: 147 | B151: 147 | C151: 0 | D151: 15100 | E151: 1510 | F151: 312 | G151: 22500 | H151: 0 | I151: 25383
A152: 148 | B152: 148 | C152: 0 | D152: 15200 | E152: 1520 | F152: 314 | G152: 22700 | H152: 0 | I152: 25551
A153: 149 | B153: 149 | C153: 0 | D153: 15300 | E153: 1530 | F153: 316 | G153: 22900 | H153: 0 | I153: 25719
A154: 150 | B154: 150 | C154: 0 | D154: 15400 | E154: 1540 | F154: 318 | G154: 23100 | H154: 0 | I154: 25887
A155: 151 | B155: 151 | C155: 0 | D155: 15500 | E155: 1550 | F155: 320 | G155: 23400 | H155: 0 | I155: 26055
A156: 152 | B156: 152 | C156: 0 | D156: 15600 | E156: 1560 | F156: 322 | G156: 23500 | H156: 0 | I156: 26223
A157: 153 | B157: 153 | C157: 0 | D157: 15700 | E157: 1570 | F157: 324 | G157: 23700 | H157: 0 | I157: 26391
A158: 154 | B158: 154 | C158: 0 | D158: 15800 | E158: 1580 | F158: 326 | G158: 23900 | H158: 0 | I158: 26559
A159: 155 | B159: 155 | C159: 0 | D159: 15900 | E159: 1590 | F159: 328 | G159: 24100 | H159: 0 | I159: 26727
A160: 156 | B160: 156 | C160: 0 | D160: 16000 | E160: 1600 | F160: 330 | G160: 24300 | H160: 0 | I160: 26895
A161: 157 | B161: 157 | C161: 0 | D161: 16100 | E161: 1610 | F161: 332 | G161: 24600 | H161: 0 | I161: 27063
A162: 158 | B162: 158 | C162: 0 | D162: 16200 | E162: 1620 | F162: 334 | G162: 24800 | H162: 0 | I162: 27231
A163: 159 | B163: 159 | C163: 0 | D163: 16300 | E163: 1630 | F163: 336 | G163: 25000 | H163: 0 | I163: 27399
A164: 160 | B164: 160 | C164: 0 | D164: 16400 | E164: 1640 | F164: 338 | G164: 25200 | H164: 0 | I164: 27567
A165: 161 | B165: 161 | C165: 0 | D165: 16500 | E165: 1650 | F165: 340 | G165: 25400 | H165: 0 | I165: 27735
A166: 162 | B166: 162 | C166: 0 | D166: 16600 | E166: 1660 | F166: 342 | G166: 25600 | H166: 0 | I166: 27903
A167: 163 | B167: 163 | C167: 0 | D167: 16700 | E167: 1670 | F167: 344 | G167: 25900 | H167: 0 | I167: 28071
A168: 164 | B168: 164 | C168: 0 | D168: 16800 | E168: 1680 | F168: 346 | G168: 26100 | H168: 0 | I168: 28239
A169: 165 | B169: 165 | C169: 0 | D169: 16900 | E169: 1690 | F169: 348 | G169: 26400 | H169: 0 | I169: 28407
A170: 166 | B170: 166 | C170: 0 | D170: 17000 | E170: 1700 | F170: 350 | G170: 26600 | H170: 0 | I170: 28575
A171: 167 | B171: 167 | C171: 0 | D171: 17100 | E171: 1710 | F171: 352 | G171: 26800 | H171: 0 | I171: 28743
A172: 168 | B172: 168 | C172: 0 | D172: 17200 | E172: 1720 | F172: 354 | G172: 27000 | H172: 0 | I172: 28911
A173: 169 | B173: 169 | C173: 0 | D173: 17300 | E173: 1730 | F173: 356 | G173: 27200 | H173: 0 | I173: 29079
A174: 170 | B174: 170 | C174: 0 | D174: 17400 | E174: 1740 | F174: 358 | G174: 27400 | H174: 0 | I174: 29247
A175: 171 | B175: 171 | C175: 0 | D175: 17500 | E175: 1750 | F175: 360 | G175: 27600 | H175: 0 | I175: 29415
A176: 172 | B176: 172 | C176: 0 | D176: 17600 | E176: 1760 | F176: 362 | G176: 27900 | H176: 0 | I176: 29583
A177: 173 | B177: 173 | C177: 0 | D177: 17700 | E177: 1770 | F177: 364 | G177: 28200 | H177: 0 | I177: 29751
A178: 174 | B178: 174 | C178: 0 | D178: 17800 | E178: 1780 | F178: 366 | G178: 28400 | H178: 0 | I178: 29919
A179: 175 | B179: 175 | C179: 0 | D179: 17900 | E179: 1790 | F179: 368 | G179: 28600 | H179: 0 | I179: 30087
A180: 176 | B180: 176 | C180: 0 | D180: 18000 | E180: 1800 | F180: 370 | G180: 28800 | H180: 0 | I180: 30255
A181: 177 | B181: 177 | C181: 0 | D181: 18100 | E181: 1810 | F181: 372 | G181: 29100 | H181: 0 | I181: 30423
A182: 178 | B182: 178 | C182: 0 | D182: 18200 | E182: 1820 | F182: 374 | G182: 29300 | H182: 0 | I182: 30591
A183: 179 | B183: 179 | C183: 0 | D183: 18300 | E183: 1830 | F183: 376 | G183: 29500 | H183: 0 | I183: 30759
A184: 180 | B184: 180 | C184: 0 | D184: 18400 | E184: 1840 | F184: 378 | G184: 29800 | H184: 0 | I184: 30927
A185: 181 | B185: 181 | C185: 0 | D185: 18500 | E185: 1850 | F185: 380 | G185: 30000 | H185: 0 | I185: 31095
A186: 182 | B186: 182 | C186: 0 | D186: 18600 | E186: 1860 | F186: 382 | G186: 32000 | H186: 0 | I186: 31263
A187: 183 | B187: 183 | C187: 0 | D187: 18700 | E187: 1870 | F187: 384 | G187: 33000 | H187: 0 | I187: 31431
A188: 184 | B188: 184 | C188: 0 | D188: 18800 | E188: 1880 | F188: 386 | G188: 33000 | H188: 0 | I188: 31599
A189: 185 | B189: 185 | C189: 0 | D189: 18900 | E189: 1890 | F189: 388 | G189: 37000 | H189: 0 | I189: 31767
A190: 186 | B190: 186 | C190: 0 | D190: 19000 | E190: 1900 | F190: 390 | G190: 39000 | H190: 0 | I190: 31935
A191: 187 | B191: 187 | C191: 0 | D191: 19100 | E191: 1910 | F191: 392 | G191: 39000 | H191: 0 | I191: 32103
A192: 188 | B192: 188 | C192: 0 | D192: 19200 | E192: 1920 | F192: 394 | G192: 45000 | H192: 0 | I192: 32271
A193: 189 | B193: 189 | C193: 0 | D193: 19300 | E193: 1930 | F193: 396 | G193: 45000 | H193: 0 | I193: 32439
A194: 190 | B194: 190 | C194: 0 | D194: 19400 | E194: 1940 | F194: 398 | G194: 51000 | H194: 0 | I194: 32607
A195: 191 | B195: 191 | C195: 0 | D195: 19500 | E195: 1950 | F195: 400 | G195: 54000 | H195: 0 | I195: 32775
A196: 192 | B196: 192 | C196: 0 | D196: 19600 | E196: 1960 | F196: 402 | G196: 62000 | H196: 0 | I196: 32943
A197: 193 | B197: 193 | C197: 0 | D197: 19700 | E197: 1970 | F197: 404 | G197: 66000 | H197: 0 | I197: 33111
A198: 194 | B198: 194 | C198: 0 | D198: 19800 | E198: 1980 | F198: 406 | G198: 84000 | H198: 0 | I198: =(D198+E198+F198)*1.5 -> 33279
A199: 195 | B199: 195 | C199: 0 | D199: 19900 | E199: 1990 | F199: 408 | G199: 102000 | H199: 0 | I199: 33447
A200: 196 | B200: 196 | C200: 0 | D200: 20000 | E200: 2000 | F200: 410 | G200: 112000 | H200: 0 | I200: 33615
A201: 197 | B201: 197 | C201: 0 | D201: 20100 | E201: 2010 | F201: 412 | G201: 114000 | H201: 0 | I201: 33783
... 603 more rows
